[Event "SixDays Budapest March IM A 2025"]
[Site "Budapest"]
[Date "2025.03.24"]
[Round "1.5"]
[White "Md Imran"]
[Black "Nakahara, Kan"]
[Result "1-0"]
[Annotator "TA"]
[ECO "E06"]
[WhiteElo "2421"]
[BlackElo "2113"]
[PlyCount "149"]
[EventDate "2025.03.23"]
[EventCountry "HUN"]
[SourceTitle "playchess.com"]
[Source "ChessBase"]
[SourceQuality "1"]
[TimeControl "5400+30"]

{[%evp 15,149,32,20,9,25,17,62,59,62,34,70,72,55,61,45,60,82,76,67,33,39,47,33,43,37,37,47,41,40,41,43,59,52,25,25,5,25,24,29,23,37,-44,-38,-29,-34,-77,-79,-71,-15,-20,0,0,0,0,0,0,50,50,50,54,61,56,51,40,54,0,0,0,0,8,59,76,110,100,110,97,175,168,176,168,160,157,172,160,177,116,146,129,164,163,159,172,171,152,164,115,173,168,223,203,250,189,290,293,324,323,299,302,342,330,316,304,6027,5995,6129,6129,5210,5197,5197,5122,29986,29987,29987,29987,29988,29988,29989,29990,29992,29993,29994,29991,29994,29995,29996,29997]} 1. d4 {[%emt 0:01:10]} Nf6 {[%emt 0:00:05]} 2. c4 {[%emt 0:00:07]} e6 {[%emt 0:00:08]} 3. g3 {[%emt 0:00:06]} d5 {[%emt 0:00:34]} 4. Bg2 {[%emt 0:00:03]} Be7 {[%emt 0:00:13]} 5. Nf3 {[%emt 0:00:07]} O-O {[%emt 0:00:11]} 6. O-O {[%emt 0:00:03]} dxc4 {[%emt 0:04:35]} 7. Na3 {[%emt 0:00:14][%cal Bb1a3,Ba3c4,Bc4a5][%mdl 32]} Bd7 {[%emt 0:04:47][%cal Bc8d7,Bd7c6,Bc6d5][%mdl 32]} 8. Nxc4 {[%emt 0:01:37]} Bc6 {[%emt 0:09:41]} 9. Bf4 {[%emt 0:00:05] E05: Open Catalan: 5 Nf3 Be7.} Nbd7 {[%emt 0:06:35]} 10. Rc1 Rc8 {[%emt 0:02:28]} 11. Na5 {[%emt 0:05:53] White is slightly better.} Bd5 {[%emt 0:01:28][%cal Oc7c5]} 12. Ne1 $146 {[%emt 0:00:02] White is more active.} ({Predecessor:} 12. Nd2 Bxg2 13. Kxg2 Nb8 14. Ndb3 b6 15. Nc4 Qd5+ 16. f3 Rfd8 17. e4 Qb7 18. Qe2 {0-1 Selbes,T (2257)-Skawinski,A (2340) Krakow op-A 27th 2016 (9)}) 12... c5 {[%emt 0:05:05]} 13. Nxb7 {[%emt 0:00:53]} Qb6 {[%emt 0:00:48]} 14. Nxc5 {[%emt 0:00:06]} Nxc5 {[%emt 0:00:54]} 15. dxc5 {[%emt 0:00:03] NOTEXT-51077 White (c5)} Qxb2 {[%emt 0:02:13]} 16. Nd3 {[%emt 0:13:37]} Qxa2 {[%emt 0:20:15]} 17. Ra1 {[%emt 0:06:59]} Qc4 {[%emt 0:01:48]} 18. Qa4 {[%emt 0:00:02]} Qxa4 {[%emt 0:10:05]} 19. Rxa4 {[%emt 0:04:54]} Bxg2 {[%emt 0:00:17]} 20. Kxg2 {[%emt 0:00:02]} Nd5 $1 {[%emt 0:02:15]} (20... Bxc5 $2 21. Nxc5 Rxc5 22. Bd6 $18 (22. Rxa7 Rc2 $11)) 21. Be5 {[%emt 0:02:17]} Rfd8 {[%emt 0:05:36]} 22. Rc1 {[%emt 0:00:18]} f6 {[%emt 0:00:13]} 23. Bb2 {[%emt 0:00:30]} Rc7 {[%emt 0:00:40]} 24. Kf3 {[%emt 0:00:30]} (24. e4 Ne3+ 25. fxe3 Rxd3 $17) 24... Bf8 $1 {[%emt 0:01:03]} 25. Ba3 {[%emt 0:02:42]} Rb8 {[%emt 0:01:54]} 26. Ra6 {[%emt 0:04:38]} Rb3 {[%emt 0:02:47]} 27. Rc4 {[%emt 0:01:43]} e5 {[%emt 0:05:14]} 28. Ke4 {[%emt 0:03:28]} (28. Kg2 $14) 28... Nc3+ $15 {[%emt 0:00:51]} 29. Ke3 {[%emt 0:00:19]} e4 {[%emt 0:10:57]} 30. Rxe4 {[%emt 0:05:29]} Nxe4 {[%emt 0:00:18]} 31. Kxe4 {[%emt 0:00:02]} Rb8 {[%emt 0:00:37]} (31... Rc3 $17) 32. Kd5 {[%emt 0:04:51]} Rd8+ {[%emt 0:00:24]} 33. Kc4 {[%emt 0:00:17]} Re7 {[%emt 0:00:50]} 34. e3 {[%emt 0:00:11]} Re4+ {[%emt 0:01:01]} 35. Kc3 {[%emt 0:00:02]} Rd7 {[%emt 0:00:24]} (35... Re7 $11) 36. c6 $14 {[%emt 0:02:21]} Rc7 {[%emt 0:00:01]} 37. Bxf8 Kxf8 {[%mdl 4096] Endgame KRR-KRN} 38. Nb4 {[%emt 0:00:11]} Ke8 {[%emt 0:01:12]} 39. Nd5 {[%emt 0:01:00]} Rc8 {[%emt 0:00:21]} 40. Kd3 {[%emt 0:00:21]} (40. Rxa7 Rxc6+ 41. Kd3 Re5 $15) ({White should play} 40. h3 $14) 40... Re6 $11 {[%emt 0:00:42]} 41. Rxa7 {[%emt 0:00:05]} Rexc6 {[%emt 0:00:45]} 42. Rxg7 {[%emt 0:00:18]} Rd6 {[%emt 0:00:32]} (42... Rd8 $11 43. Rg8+ Kd7 44. Rxd8+ Kxd8) 43. e4 $1 $14 {[%emt 0:00:10]} f5 {[%emt 0:00:37]} 44. Rxh7 {[%emt 0:00:11]} fxe4+ {[%emt 0:00:14]} 45. Kxe4 {[%emt 0:00:01]} Rc2 {[%emt 0:00:02]} (45... Rc5 $16) 46. Ke5 $18 {[%emt 0:00:28]} Rdc6 {[%emt 0:00:22] [#]} 47. Nf6+ $1 {[%emt 0:00:24]} Kf8 {[%emt 0:00:13] [#]} 48. Ne4 {[%emt 0:00:02]} Ra6 {[%emt 0:00:24]} 49. Rd7 {[%emt 0:00:07]} Re2 {[%emt 0:00:18]} 50. Rd2 {[%emt 0:00:35]} (50. h4 $18) 50... Ra5+ {[%emt 0:00:24]} 51. Kf4 {[%emt 0:00:04]} Re1 {[%emt 0:00:05]} 52. f3 {[%emt 0:00:03]} Ra3 {[%emt 0:00:14]} 53. h4 {[%emt 0:00:07]} Rf1 {[%emt 0:00:56]} 54. Rf2 {[%emt 0:01:10]} Rh1 {[%emt 0:00:10]} 55. Kg4 {[%emt 0:00:09]} (55. Rb2 $18) 55... Ra4 {[%emt 0:00:07]} (55... Rb1 $16 56. Ng5 Rb4+ 57. f4 Rbb3) 56. Rb2 {[%emt 0:00:17]} Kf7 {[%emt 0:00:46]} (56... Rc1 57. Rb5 Rc3) 57. Rb7+ {[%emt 0:00:14]} Ke6 {[%emt 0:00:26]} 58. Rb5 {[%emt 0:00:02]} Rf1 {[%emt 0:00:33]} (58... Ra8 {keeps fighting.} 59. Rb7 Kd5) 59. h5 {[%emt 0:00:07][%cal Bh4h5,Bh5h6][%mdl 32]} Kf7 {[%emt 0:00:18]} 60. Rf5+ {[%emt 0:00:20]} Kg7 {[%emt 0:00:34]} 61. Kg5 {[%emt 0:00:02]} Ra6 {[%emt 0:00:29]} 62. g4 {[%emt 0:00:20]} Rb6 {[%emt 0:00:33]} 63. Nf6 {[%emt 0:00:05] h6+ is the strong threat.} Rd1 $2 {[%emt 0:00:35]} (63... Rh1 64. Ne8+ Kh8 65. Rf8+ Kh7 66. Rf7+ Kg8) 64. h6+ {[%emt 0:01:07]} Kh8 {[%emt 0:00:04]} 65. Re5 {[%emt 0:00:14][%cal Re5e8]} Rd8 {[%emt 0:00:17]} 66. Re7 {[%emt 0:00:06][%csl Gf6][%cal Re7h7]} Rxf6 {[%emt 0:00:30]} 67. Kxf6 {[%emt 0:00:02] g5 would kill now. KR-KR. White is 3 pawns up.} Rd6+ {[%emt 0:00:16]} 68. Re6 {[%emt 0:00:05] White mates.} Rd8 {[%emt 0:00:11]} 69. f4 {[%emt 0:00:02][%cal Bf3f4,Bf4f5,Bf5f6,Bf6f7][%mdl 32]} Rf8+ {[%emt 0:00:08]} 70. Kg5 {[%emt 0:00:05]} Rg8+ {[%emt 0:00:25]} 71. Kh5 {[%emt 0:00:02]} Rf8 {[%emt 0:00:08]} 72. f5 {[%emt 0:00:02]} Rf7 {[%emt 0:00:08]} 73. f6 {[%emt 0:00:06]} Rf8 {[%emt 0:00:18]} 74. g5 {[%emt 0:00:01]} Ra8 {[%emt 0:00:05]} 75. f7 {[%emt 0:00:04] Weighted Error Value: White=0.12 (very precise) /Black=0.18 (very precise)   Mistake:       	White=4     	Black=8      Inaccurate:     	White=4     	Black=3      OK:         	White=22    	Black=16     Best:        	White=7     	Black=5      Strong:       	White=2     	Black=2} 1-0